[Event "African Games Rapid Open 2019"]
[Site "Casablanca"]
[Date "2019.08.27"]
[Round "7.19"]
[White "Rita, Jeorciley"]
[Black "Hassan, Abderrahmane"]
[Result "1/2-1/2"]
[ECO "C01"]
[WhiteElo "1920"]
[BlackElo "1786"]
[Annotator "NA"]
[PlyCount "93"]
[EventDate "2019.08.26"]
[EventType "team-tourn"]
[EventCountry "MAR"]
[SourceTitle "playchess.com"]
[Source "ChessBase"]
[SourceQuality "1"]
[TimeControl "900+10"]

1. e4 {[%emt 0:00:00]} e6 {[%emt 0:00:00]} 2. d4 {[%emt 0:00:00]} d5 {[%emt 0:00:00]} 3. exd5 {[%emt 0:00:00]} exd5 {[%emt 0:00:00]} 4. Nf3 {[%emt 0:00:00]} Bd6 {[%emt 0:00:00]} 5. Bd3 {[%emt 0:00:03]} Ne7 {[%emt 0:00:00]} 6. Nc3 {[%emt 0:00:31]} c6 {[%emt 0:00:01]} 7. Ne2 {[%emt 0:00:02]} Bf5 {[%emt 0:00:06]} 8. Ng3 {[%emt 0:00:06]} Bxd3 {[%emt 0:00:03]} 9. Qxd3 {[%emt 0:00:03]} O-O {[%emt 0:00:03]} 10. O-O {[%emt 0:00:04]} Nd7 {[%emt 0:00:06]} 11. c3 {[%emt 0:00:11]} Ng6 {[%emt 0:00:11]} 12. Bd2 {[%emt 0:00:04]} Re8 {[%emt 0:00:08]} 13. Rfe1 {[%emt 0:00:02]} Qc7 {[%emt 0:00:02]} 14. Nf5 {[%emt 0:00:25]} Bf4 {[%emt 0:01:05]} 15. g3 {[%emt 0:00:34]} Bxd2 {[%emt 0:00:06]} 16. Qxd2 {[%emt 0:00:02]} Nf6 {[%emt 0:00:37]} 17. Qd3 {[%emt 0:01:39]} Re4 {[%emt 0:00:32]} 18. Nd2 {[%emt 0:00:36]} Re6 {[%emt 0:01:42]} 19. Ne3 {[%emt 0:02:48]} Rae8 {[%emt 0:00:11]} 20. Re2 {[%emt 0:00:02]} h5 {[%emt 0:02:57]} 21. h4 {[%emt 0:01:17]} Ne4 {[%emt 0:00:19]} 22. Nxe4 {[%emt 0:01:41]} Rxe4 {[%emt 0:00:13]} 23. Rae1 {[%emt 0:00:43]} Qd7 {[%emt 0:02:02]} 24. Ng2 {[%emt 0:02:47]} Qg4 {[%emt 0:04:20]} 25. Rxe4 {[%emt 0:01:09]} Rxe4 {[%emt 0:00:03]} 26. Rxe4 {[%emt 0:00:02]} dxe4 {[%emt 0:00:01]} 27. Qe3 {[%emt 0:00:25]} f5 {[%emt 0:00:14]} 28. Qg5 {[%emt 0:00:47]} Qxg5 {[%emt 0:00:44]} 29. hxg5 {[%emt 0:00:01]} Kf7 {[%emt 0:00:06]} 30. Kf1 {[%emt 0:00:26]} Ke6 {[%emt 0:00:03]} 31. c4 {[%emt 0:00:11]} a5 {[%emt 0:01:17]} 32. Ke2 {[%emt 0:00:45]} b5 {[%emt 0:00:13]} 33. b3 {[%emt 0:00:01]} bxc4 {[%emt 0:00:42]} 34. bxc4 {[%emt 0:00:01]} f4 {[%emt 0:01:40]} 35. Nh4 {[%emt 0:01:07]} Nxh4 36. gxh4 {[%emt 0:00:02]} g6 {[%emt 0:00:37]} 37. a4 {[%emt 0:00:15]} Kd6 {[%emt 0:00:05]} 38. Kd2 {[%emt 0:00:12]} Ke6 {[%emt 0:00:05]} 39. Ke2 {[%emt 0:00:01]} Kf5 {[%emt 0:00:23]} 40. f3 {[%emt 0:00:26]} e3 {[%emt 0:00:04]} 41. Kd3 {[%emt 0:00:03]} Ke6 {[%emt 0:00:03]} 42. Ke2 {[%emt 0:00:03]} Kd7 {[%emt 0:00:15]} 43. Kd3 {[%emt 0:00:08]} Kd6 {[%emt 0:00:05]} 44. Ke2 {[%emt 0:00:04]} Ke6 {[%emt 0:00:30]} 45. Kd3 {[%emt 0:00:02]} Kd6 {[%emt 0:00:16]} 46. Ke2 {[%emt 0:00:03]} Ke6 {[%emt 0:00:09]} 47. Kd3 {[%emt 0:00:02]} 1/2-1/2

[Event "African Games Rapid Open 2019"]
[Site "Casablanca"]
[Date "2019.08.27"]
[Round "7.20"]
[White "Espirito Santo, Waldyr"]
[Black "Naipal, Hoolan"]
[Result "1-0"]
[ECO "C21"]
[WhiteElo "1923"]
[BlackElo "1785"]
[Annotator "NA"]
[PlyCount "57"]
[EventDate "2019.08.26"]
[EventType "team-tourn"]
[EventCountry "MAR"]
[SourceTitle "playchess.com"]
[Source "ChessBase"]
[SourceQuality "1"]
[TimeControl "900+10"]

1. e4 {[%emt 0:00:00]} e5 {[%emt 0:00:00]} 2. d4 {[%emt 0:00:02]} exd4 {[%emt 0:00:01]} 3. c3 {[%emt 0:00:03]} d5 {[%emt 0:00:09]} 4. exd5 {[%emt 0:00:26]} Qxd5 {[%emt 0:00:08]} 5. cxd4 {[%emt 0:00:31]} Nc6 {[%emt 0:00:16]} 6. Nf3 {[%emt 0:00:02]} Bg4 {[%emt 0:00:22]} 7. Be2 {[%emt 0:00:07]} O-O-O {[%emt 0:00:56]} 8. Nc3 {[%emt 0:00:08]} Bb4 {[%emt 0:01:18]} 9. O-O {[%emt 0:00:08]} Qh5 {[%emt 0:00:54]} 10. Bf4 {[%emt 0:01:26]} Bd6 {[%emt 0:01:31]} 11. Qd2 {[%emt 0:02:20]} Nf6 {[%emt 0:01:24]} 12. Rfe1 {[%emt 0:01:08]} Rhe8 {[%emt 0:03:07]} 13. h3 {[%emt 0:03:29]} Bxf4 {[%emt 0:00:30]} 14. Qxf4 {[%emt 0:00:14]} Qf5 {[%emt 0:00:02]} 15. Qxf5+ {[%emt 0:03:15]} Bxf5 {[%emt 0:00:02]} 16. Rad1 {[%emt 0:00:19]} Nd5 {[%emt 0:05:32]} 17. Bc4 {[%emt 0:00:58]} Rxe1+ {[%emt 0:00:26]} 18. Rxe1 {[%emt 0:00:09]} Be6 {[%emt 0:00:35]} 19. a3 {[%emt 0:00:16]} h6 {[%emt 0:00:35]} 20. Kh2 {[%emt 0:01:31]} a6 {[%emt 0:00:05]} 21. Kg1 {[%emt 0:00:16]} b5 {[%emt 0:00:25]} 22. Ba2 {[%emt 0:00:08]} Kb7 {[%emt 0:00:04]} 23. Ne4 {[%emt 0:00:48]} Nf4 {[%emt 0:00:17]} 24. Nc5+ {[%emt 0:00:18]} Kb6 {[%emt 0:00:03]} 25. Nxe6 {[%emt 0:00:20]} Nxe6 {[%emt 0:00:08]} 26. Bxe6 {[%emt 0:00:09]} Nxd4 {[%emt 0:00:05]} 27. Nxd4 {[%emt 0:00:09]} Rxd4 {[%emt 0:00:02]} 28. Bxf7 {[%emt 0:00:12]} Rd2 {[%emt 0:00:01]} 29. b4 {[%emt 0:00:23]} 1-0

[Event "African Games Rapid Open 2019"]
[Site "Casablanca"]
[Date "2019.08.27"]
[Round "7.21"]
[White "Winston Gerald, Mansfield Thomas"]
[Black "Asante Debesai Zerabruk"]
[Result "0-1"]
[ECO "B00"]
[WhiteElo "1872"]
[BlackElo "1712"]
[Annotator "NA"]
[PlyCount "148"]
[EventDate "2019.08.26"]
[EventType "team-tourn"]
[EventCountry "MAR"]
[SourceTitle "playchess.com"]
[Source "ChessBase"]
[SourceQuality "1"]
[TimeControl "900+10"]

1. e4 {[%emt 0:00:56]} d6 {[%emt 0:00:00]} 2. d4 {[%emt 0:00:04]} Nf6 {[%emt 0:00:00]} 3. Bd3 {[%emt 0:00:02]} Nbd7 {[%emt 0:00:00]} 4. Nf3 {[%emt 0:00:04]} e5 {[%emt 0:00:04]} 5. c3 {[%emt 0:00:03]} c6 {[%emt 0:00:06]} 6. O-O {[%emt 0:00:04]} Be7 {[%emt 0:00:04]} 7. Re1 {[%emt 0:00:02]} Qc7 {[%emt 0:00:02]} 8. h3 {[%emt 0:00:05]} h6 {[%emt 0:00:06]} 9. Nbd2 {[%emt 0:00:05]} Nf8 {[%emt 0:00:15]} 10. Nf1 {[%emt 0:00:07]} g5 {[%emt 0:00:12]} 11. N3h2 {[%emt 0:00:40]} Ng6 {[%emt 0:00:05]} 12. Bd2 {[%emt 0:00:48]} Nf4 {[%emt 0:00:12]} 13. Bxf4 {[%emt 0:00:15]} gxf4 {[%emt 0:00:03]} 14. Kh1 {[%emt 0:00:20]} Rg8 {[%emt 0:00:11]} 15. Nd2 {[%emt 0:00:09]} Nh7 {[%emt 0:01:57]} 16. Ndf3 {[%emt 0:00:29]} Bd7 {[%emt 0:00:39]} 17. Bf1 {[%emt 0:00:06]} O-O-O {[%emt 0:01:00]} 18. a4 {[%emt 0:00:08]} Ng5 {[%emt 0:00:03]} 19. a5 {[%emt 0:00:07]} f5 {[%emt 0:00:34]} 20. Nd2 {[%emt 0:01:09]} fxe4 {[%emt 0:00:11]} 21. Nxe4 {[%emt 0:00:02]} Nxe4 {[%emt 0:00:26]} 22. Rxe4 {[%emt 0:00:02]} Bf5 {[%emt 0:00:01]} 23. Re1 {[%emt 0:00:11]} Bh4 {[%emt 0:00:21]} 24. Qd2 {[%emt 0:00:19]} Qg7 {[%emt 0:00:29]} 25. Nf3 {[%emt 0:01:56]} Bf6 {[%emt 0:00:16]} 26. a6 {[%emt 0:02:05]} b6 {[%emt 0:00:03]} 27. Ra4 {[%emt 0:00:57]} Qg6 {[%emt 0:01:52]} 28. Rc1 {[%emt 0:03:26]} e4 {[%emt 0:00:07]} 29. Qxf4 {[%emt 0:00:22]} exf3 {[%emt 0:00:07]} 30. Qxf3 {[%emt 0:00:02]} Be4 {[%emt 0:00:13]} 31. Qg3 {[%emt 0:00:28]} Qf5 {[%emt 0:00:44]} 32. Qh2 {[%emt 0:01:26]} Qxf2 {[%emt 0:00:27]} 33. Raa1 {[%emt 0:01:16]} Bg5 {[%emt 0:00:14]} 34. Re1 {[%emt 0:00:15]} Qxb2 {[%emt 0:01:40]} 35. Qg1 {[%emt 0:00:59]} Qxc3 {[%emt 0:01:33]} 36. Rad1 {[%emt 0:00:06]} Qxh3+ {[%emt 0:00:04]} 37. Qh2 {[%emt 0:00:03]} Qxh2+ {[%emt 0:00:25]} 38. Kxh2 {[%emt 0:00:01]} d5 {[%emt 0:00:14]} 39. Re2 {[%emt 0:00:26]} Bf4+ {[%emt 0:00:11]} 40. Kg1 {[%emt 0:00:02]} Bf3 {[%emt 0:00:05]} 41. Kf2 {[%emt 0:00:20]} Bxe2 {[%emt 0:00:02]} 42. Bxe2 {[%emt 0:00:02]} Bg3+ {[%emt 0:00:06]} 43. Ke3 {[%emt 0:00:08]} Rde8+ {[%emt 0:00:03]} 44. Kd3 {[%emt 0:00:05]} Bf4 {[%emt 0:00:19]} 45. Bf3 {[%emt 0:00:08]} Re3+ {[%emt 0:00:02]} 46. Kc2 {[%emt 0:00:02]} Rxg2+ {[%emt 0:00:07]} 47. Bxg2 {[%emt 0:00:02]} Re2+ {[%emt 0:00:00]} 48. Kd3 Rxg2 {[%emt 0:00:08]} 49. Re1 {[%emt 0:00:15]} Kd7 {[%emt 0:00:09]} 50. Rf1 {[%emt 0:00:09]} Bd6 {[%emt 0:00:22]} 51. Rf7+ {[%emt 0:00:13]} Be7 {[%emt 0:00:01]} 52. Rh7 {[%emt 0:00:03]} Rg3+ {[%emt 0:00:08]} 53. Kc2 {[%emt 0:00:02]} Ra3 {[%emt 0:00:13]} 54. Rxh6 {[%emt 0:00:04]} Rxa6 {[%emt 0:00:01]} 55. Rh7 {[%emt 0:00:06]} Ra3 {[%emt 0:00:09]} 56. Rh8 {[%emt 0:00:07]} a5 {[%emt 0:00:07]} 57. Rb8 {[%emt 0:00:02]} Kc7 {[%emt 0:00:01]} 58. Ra8 {[%emt 0:00:06]} Kb7 {[%emt 0:00:22]} 59. Rg8 {[%emt 0:00:05]} Ka6 {[%emt 0:00:03]} 60. Re8 {[%emt 0:00:10]} Bb4 {[%emt 0:00:14]} 61. Re6 {[%emt 0:00:14]} Kb5 {[%emt 0:00:02]} 62. Rg6 {[%emt 0:00:10]} Rc3+ {[%emt 0:00:03]} 63. Kb2 {[%emt 0:00:03]} Rd3 {[%emt 0:00:07]} 64. Rg4 {[%emt 0:00:22]} Bc3+ {[%emt 0:00:25]} 65. Kc2 {[%emt 0:00:03]} Rxd4 {[%emt 0:00:01]} 66. Rg3 {[%emt 0:00:04]} Bb4 {[%emt 0:00:04]} 67. Rg6 {[%emt 0:00:07]} a4 {[%emt 0:00:03]} 68. Rg8 {[%emt 0:00:04]} a3 {[%emt 0:00:02]} 69. Kb3 {[%emt 0:00:13]} Rd2 {[%emt 0:00:16]} 70. Rg2 {[%emt 0:00:24]} Rb2+ {[%emt 0:00:20]} 71. Rxb2 {[%emt 0:00:02]} axb2 {[%emt 0:00:02]} 72. Kxb2 Bf8 73. Kb3 {[%emt 0:00:05]} d4 {[%emt 0:00:01]} 74. Kc2 {[%emt 0:00:02]} Kc4 {[%emt 0:00:01]} 0-1

[Event "African Games Rapid Open 2019"]
[Site "Casablanca"]
[Date "2019.08.27"]
[Round "8.3"]
[White "Bellahcene, Bilel"]
[Black "Wanyama, Harold"]
[Result "1/2-1/2"]
[ECO "B41"]
[WhiteElo "2550"]
[BlackElo "2293"]
[Annotator "ChessBase"]
[PlyCount "109"]
[EventDate "2019.08.26"]
[EventType "team-tourn"]
[EventCountry "MAR"]
[SourceTitle "playchess.com"]
[Source "ChessBase"]
[SourceQuality "1"]
[TimeControl "900+10"]

1. e4 {[%emt 0:05:09]} c5 {[%emt 0:00:06]} 2. Nf3 {[%emt 0:00:01]} e6 {[%emt 0:00:01]} 3. d4 {[%emt 0:00:01]} cxd4 {[%emt 0:00:01]} 4. Nxd4 {[%emt 0:00:00]} a6 {[%emt 0:00:00]} 5. c4 {[%emt 0:00:02]} Qc7 {[%emt 0:00:02]} 6. Nc3 {[%emt 0:00:02]} Nf6 {[%emt 0:00:00]} 7. Be2 {[%emt 0:00:12]} Bb4 {[%emt 0:00:05]} 8. O-O {[%emt 0:00:08]} O-O {[%emt 0:00:02]} 9. Bg5 {[%emt 0:00:04]} Bxc3 {[%emt 0:00:13]} 10. Bxf6 {[%emt 0:00:02]} gxf6 {[%emt 0:00:13]} 11. bxc3 {[%emt 0:00:03]} d6 {[%emt 0:00:00]} 12. Qd2 {[%emt 0:00:19]} Qe7 {[%emt 0:00:12]} 13. Rad1 {[%emt 0:00:05]} Rd8 {[%emt 0:00:09]} 14. Qh6 {[%emt 0:00:04]} Kh8 {[%emt 0:01:00]} 15. Rd3 {[%emt 0:00:48]} Rg8 {[%emt 0:00:03]} 16. Rh3 {[%emt 0:00:10]} Rg7 {[%emt 0:00:01]} 17. f4 {[%emt 0:00:04]} e5 {[%emt 0:01:30]} 18. f5 {[%emt 0:01:49]} exd4 {[%emt 0:02:12]} 19. Rf4 {[%emt 0:00:01]} Nd7 {[%emt 0:00:53]} 20. cxd4 {[%emt 0:02:21]} Nf8 {[%emt 0:00:14]} 21. Rg3 {[%emt 0:00:20]} Ng6 {[%emt 0:03:35]} 22. fxg6 {[%emt 0:00:33]} fxg6 {[%emt 0:00:01]} 23. h4 {[%emt 0:00:13]} f5 {[%emt 0:00:58]} 24. Bf3 {[%emt 0:00:01]} Be6 {[%emt 0:00:31]} 25. h5 {[%emt 0:00:41]} fxe4 {[%emt 0:02:07]} 26. Rxe4 {[%emt 0:00:09]} Qf6 {[%emt 0:00:16]} 27. hxg6 {[%emt 0:00:33]} Bxc4 {[%emt 0:00:21]} 28. Rf4 {[%emt 0:01:57]} Qe7 {[%emt 0:00:34]} 29. d5 {[%emt 0:00:13]} Bd3 {[%emt 0:00:25]} 30. Rf7 {[%emt 0:00:25]} Qe1+ {[%emt 0:00:46]} 31. Kh2 {[%emt 0:00:03]} Qxg3+ 32. Kxg3 {[%emt 0:00:05]} Rxg6+ {[%emt 0:00:01]} 33. Qxg6 {[%emt 0:00:03]} Bxg6 {[%emt 0:00:01]} 34. Rd7 {[%emt 0:00:28]} Rc8 {[%emt 0:00:09]} 35. Rxd6 {[%emt 0:00:03]} Rc2 {[%emt 0:00:03]} 36. a4 {[%emt 0:00:19]} Rc4 {[%emt 0:00:11]} 37. a5 {[%emt 0:00:01]} Ra4 {[%emt 0:00:07]} 38. Re6 {[%emt 0:00:47]} Kg7 {[%emt 0:01:33]} 39. d6 {[%emt 0:00:00]} Rd4 {[%emt 0:00:12]} 40. Bxb7 {[%emt 0:01:12]} Bf7 {[%emt 0:00:13]} 41. Re5 {[%emt 0:01:29]} Rxd6 {[%emt 0:00:04]} 42. Kf4 {[%emt 0:00:01]} Kf6 {[%emt 0:00:13]} 43. Rf5+ {[%emt 0:00:02]} Ke7 {[%emt 0:00:17]} 44. Rc5 {[%emt 0:00:01]} Kf6 {[%emt 0:00:09]} 45. Rc6 {[%emt 0:00:26]} Rxc6 {[%emt 0:00:09]} 46. Bxc6 {[%emt 0:00:01]} Bc4 {[%emt 0:00:01]} 47. Ke4 {[%emt 0:00:29]} Kg5 {[%emt 0:00:08]} 48. Kd4 {[%emt 0:00:05]} Bf1 {[%emt 0:00:01]} 49. Kc5 {[%emt 0:00:12]} Kg4 {[%emt 0:00:02]} 50. Kb6 {[%emt 0:00:07]} Kg3 {[%emt 0:00:01]} 51. Bb7 {[%emt 0:00:32]} h5 {[%emt 0:00:07]} 52. Bxa6 {[%emt 0:00:02]} Bxg2 {[%emt 0:00:36]} 53. Bc8 h4 {[%emt 0:00:06]} 54. a6 {[%emt 0:00:42]} h3 {[%emt 0:00:10]} 55. Bxh3 {[%emt 0:00:03]} 1/2-1/2

[Event "African Games Rapid Open 2019"]
[Site "Casablanca"]
[Date "2019.08.27"]
[Round "8.4"]
[White "Boudriga, Mohamed Ali"]
[Black "Kayonde, Andrew"]
[Result "0-1"]
[ECO "B12"]
[WhiteElo "2325"]
[BlackElo "2384"]
[Annotator "NA"]
[PlyCount "84"]
[EventDate "2019.08.26"]
[EventType "team-tourn"]
[EventCountry "MAR"]
[SourceTitle "playchess.com"]
[Source "ChessBase"]
[SourceQuality "1"]
[TimeControl "900+10"]

1. e4 c6 {[%emt 0:00:00]} 2. d4 {[%emt 0:00:00]} d5 {[%emt 0:00:00]} 3. e5 {[%emt 0:00:08]} c5 {[%emt 0:00:00]} 4. c3 {[%emt 0:00:11]} Nc6 {[%emt 0:00:00]} 5. Be2 {[%emt 0:00:40]} Bf5 {[%emt 0:00:17]} 6. Nf3 {[%emt 0:00:16]} e6 {[%emt 0:00:01]} 7. O-O {[%emt 0:00:06]} Bg4 {[%emt 0:00:49]} 8. Nbd2 {[%emt 0:01:10]} cxd4 {[%emt 0:00:04]} 9. cxd4 {[%emt 0:00:16]} Nge7 {[%emt 0:00:02]} 10. h3 {[%emt 0:00:03]} Bh5 {[%emt 0:00:08]} 11. a3 {[%emt 0:02:59]} a5 {[%emt 0:00:28]} 12. Qa4 {[%emt 0:01:08]} Nc8 {[%emt 0:00:08]} 13. Bb5 {[%emt 0:00:15]} N8a7 {[%emt 0:00:01]} 14. Bd3 {[%emt 0:01:19]} Be7 {[%emt 0:00:12]} 15. g4 {[%emt 0:00:42]} Bg6 {[%emt 0:00:02]} 16. Bxg6 {[%emt 0:00:03]} hxg6 {[%emt 0:00:00]} 17. Qc2 {[%emt 0:00:09]} Rxh3 {[%emt 0:00:12]} 18. Kg2 {[%emt 0:00:01]} Rh8 {[%emt 0:00:01]} 19. Qd3 {[%emt 0:00:08]} Qb6 {[%emt 0:00:07]} 20. Nb1 {[%emt 0:00:23]} Qb5 {[%emt 0:01:55]} 21. Qd1 {[%emt 0:00:21]} Nc8 {[%emt 0:01:01]} 22. Nc3 {[%emt 0:00:03]} Qa6 {[%emt 0:00:08]} 23. Rh1 {[%emt 0:01:52]} Rxh1 {[%emt 0:00:33]} 24. Qxh1 {[%emt 0:00:02]} Nb6 {[%emt 0:00:03]} 25. Qh8+ {[%emt 0:00:05]} Bf8 {[%emt 0:00:01]} 26. Bg5 {[%emt 0:01:43]} a4 {[%emt 0:00:19]} 27. Rh1 {[%emt 0:00:51]} Nd7 {[%emt 0:00:40]} 28. Rh7 {[%emt 0:00:11]} Qd3 {[%emt 0:00:40]} 29. Be3 {[%emt 0:01:16]} O-O-O {[%emt 0:00:16]} 30. Qg8 {[%emt 0:00:04]} Bxa3 {[%emt 0:00:56]} 31. Qxf7 {[%emt 0:00:02]} Bxb2 {[%emt 0:00:01]} 32. Nxa4 {[%emt 0:00:28]} Bxd4 {[%emt 0:00:01]} 33. Qxe6 {[%emt 0:00:29]} Bxe3 {[%emt 0:00:08]} 34. fxe3 {[%emt 0:00:03]} Qc2+ {[%emt 0:00:16]} 35. Kg3 {[%emt 0:00:06]} Qxa4 {[%emt 0:00:01]} 36. Rxg7 {[%emt 0:00:10]} Qe4 {[%emt 0:00:07]} 37. Rf7 {[%emt 0:00:21]} Ncxe5 {[%emt 0:00:41]} 38. Rf4 {[%emt 0:01:48]} Qxe3 {[%emt 0:00:03]} 39. Qxd5 {[%emt 0:01:18]} g5 {[%emt 0:00:16]} 40. Rf5 {[%emt 0:00:14]} Nxf3 {[%emt 0:00:24]} 41. Qc4+ {[%emt 0:00:14]} Kb8 {[%emt 0:00:05]} 42. Rxf3 {[%emt 0:00:04]} Qxf3+ {[%emt 0:00:02]} 0-1

[Event "African Games Rapid Open 2019"]
[Site "Casablanca"]
[Date "2019.08.27"]
[Round "8.5"]
[White "Silva, David"]
[Black "Arab, Adlane"]
[Result "1-0"]
[ECO "B47"]
[WhiteElo "2239"]
[BlackElo "2485"]
[Annotator "ChessBase"]
[PlyCount "79"]
[EventDate "2019.08.26"]
[EventType "team-tourn"]
[EventCountry "MAR"]
[SourceTitle "playchess.com"]
[Source "ChessBase"]
[SourceQuality "1"]
[TimeControl "900+10"]

1. e4 {[%emt 0:00:00]} c5 {[%emt 0:00:00]} 2. Nf3 {[%emt 0:00:00]} Nc6 {[%emt 0:00:00]} 3. Nc3 {[%emt 0:00:00]} e6 {[%emt 0:00:03]} 4. d4 {[%emt 0:00:00]} cxd4 {[%emt 0:00:05]} 5. Nxd4 {[%emt 0:00:00]} Qc7 {[%emt 0:00:07]} 6. g3 {[%emt 0:00:22]} Nf6 {[%emt 0:00:16]} 7. Be3 {[%emt 0:00:07]} d6 {[%emt 0:00:06]} 8. Bg2 {[%emt 0:00:02]} a6 {[%emt 0:00:06]} 9. O-O {[%emt 0:00:05]} Be7 {[%emt 0:00:01]} 10. h3 {[%emt 0:00:30]} O-O {[%emt 0:00:03]} 11. Na4 {[%emt 0:00:06]} Bd7 {[%emt 0:00:48]} 12. c4 {[%emt 0:00:52]} Ne5 {[%emt 0:02:09]} 13. Rc1 {[%emt 0:00:17]} Qa5 {[%emt 0:00:02]} 14. b3 {[%emt 0:00:14]} Bxa4 {[%emt 0:00:12]} 15. bxa4 {[%emt 0:00:02]} Ned7 {[%emt 0:00:22]} 16. Rb1 {[%emt 0:00:28]} Rab8 {[%emt 0:00:14]} 17. g4 {[%emt 0:01:01]} Nc5 {[%emt 0:00:28]} 18. Nb3 {[%emt 0:00:02]} Nxb3 {[%emt 0:00:31]} 19. axb3 {[%emt 0:00:16]} b5 {[%emt 0:00:04]} 20. axb5 {[%emt 0:00:14]} axb5 {[%emt 0:00:00]} 21. Ra1 {[%emt 0:00:02]} Qd8 {[%emt 0:00:38]} 22. Ba7 {[%emt 0:00:03]} bxc4 {[%emt 0:00:47]} 23. Bxb8 {[%emt 0:00:03]} Qxb8 {[%emt 0:00:01]} 24. bxc4 {[%emt 0:00:02]} Nd7 {[%emt 0:00:01]} 25. Qa4 {[%emt 0:00:08]} Nc5 {[%emt 0:00:10]} 26. Qa7 {[%emt 0:00:09]} Qd8 {[%emt 0:00:22]} 27. Rfd1 {[%emt 0:00:10]} Bf6 {[%emt 0:00:02]} 28. Ra5 {[%emt 0:00:08]} Qc8 {[%emt 0:01:23]} 29. Rxd6 {[%emt 0:00:31]} Nb3 {[%emt 0:00:02]} 30. Ra4 {[%emt 0:00:13]} Be5 {[%emt 0:00:19]} 31. Rd1 {[%emt 0:00:40]} h5 {[%emt 0:00:04]} 32. Qb6 {[%emt 0:00:13]} Nc5 {[%emt 0:00:32]} 33. Ra5 {[%emt 0:00:17]} Nd7 {[%emt 0:00:38]} 34. Qb5 {[%emt 0:00:11]} Bc7 {[%emt 0:03:04]} 35. Ra7 {[%emt 0:00:03]} Nc5 {[%emt 0:00:21]} 36. e5 {[%emt 0:00:55]} Bxe5 {[%emt 0:00:29]} 37. Qc6 {[%emt 0:00:27]} hxg4 {[%emt 0:00:10]} 38. hxg4 {[%emt 0:00:07]} Qxc6 {[%emt 0:00:48]} 39. Bxc6 {[%emt 0:00:03]} g5 {[%emt 0:00:02]} 40. Ra5 {[%emt 0:00:08]} 1-0

[Event "African Games Rapid Open 2019"]
[Site "Casablanca"]
[Date "2019.08.27"]
[Round "8.6"]
[White "Mesfin, Leykun"]
[Black "Makoto, Rodwell"]
[Result "0-1"]
[ECO "C60"]
[WhiteElo "2151"]
[BlackElo "2373"]
[Annotator "NA"]
[PlyCount "118"]
[EventDate "2019.08.26"]
[EventType "team-tourn"]
[EventCountry "MAR"]
[SourceTitle "playchess.com"]
[Source "ChessBase"]
[SourceQuality "1"]
[TimeControl "900+10"]

1. e4 {[%emt 0:00:00]} e5 {[%emt 0:00:00]} 2. Nf3 {[%emt 0:00:00]} Nc6 {[%emt 0:00:00]} 3. Bb5 {[%emt 0:00:00]} g6 {[%emt 0:00:00]} 4. O-O Bg7 5. Re1 {[%emt 0:00:24]} a6 {[%emt 0:00:00]} 6. Bf1 {[%emt 0:00:01]} d6 {[%emt 0:00:00]} 7. d3 {[%emt 0:00:08]} Nf6 {[%emt 0:00:09]} 8. c3 {[%emt 0:00:03]} O-O {[%emt 0:00:02]} 9. Nbd2 {[%emt 0:00:52]} h6 {[%emt 0:00:04]} 10. Nc4 {[%emt 0:00:12]} Ne7 {[%emt 0:00:01]} 11. h3 {[%emt 0:00:13]} Nh7 {[%emt 0:00:06]} 12. Ne3 {[%emt 0:00:14]} f5 {[%emt 0:00:17]} 13. exf5 {[%emt 0:00:13]} gxf5 {[%emt 0:00:00]} 14. d4 {[%emt 0:05:52]} e4 {[%emt 0:00:07]} 15. Nh2 {[%emt 0:00:02]} f4 {[%emt 0:00:20]} 16. Nc4 {[%emt 0:01:21]} b5 {[%emt 0:00:16]} 17. Nd2 {[%emt 0:00:35]} d5 {[%emt 0:00:01]} 18. a4 {[%emt 0:00:02]} Rb8 {[%emt 0:00:05]} 19. axb5 {[%emt 0:00:02]} axb5 20. Qb3 {[%emt 0:00:15]} Kh8 {[%emt 0:00:22]} 21. Ra5 {[%emt 0:01:25]} c6 {[%emt 0:00:11]} 22. Ra7 {[%emt 0:00:09]} Nf5 {[%emt 0:00:28]} 23. Ng4 {[%emt 0:00:43]} Qg5 {[%emt 0:00:31]} 24. Nxe4 {[%emt 0:00:36]} dxe4 {[%emt 0:00:30]} 25. Rxe4 {[%emt 0:00:01]} Nd6 {[%emt 0:00:33]} 26. Ree7 {[%emt 0:00:07]} Rb7 {[%emt 0:00:42]} 27. Rexb7 {[%emt 0:00:19]} Nxb7 {[%emt 0:00:10]} 28. Qa3 {[%emt 0:00:47]} Nf6 {[%emt 0:01:08]} 29. Ne5 {[%emt 0:00:32]} Nd5 {[%emt 0:02:41]} 30. Ra8 {[%emt 0:00:54]} Kg8 {[%emt 0:00:32]} 31. Nxc6 {[%emt 0:00:30]} Bxh3 {[%emt 0:02:11]} 32. Rxf8+ {[%emt 0:00:02]} Bxf8 {[%emt 0:00:01]} 33. Qb3 {[%emt 0:00:21]} Nd6 {[%emt 0:01:36]} 34. Ne5 {[%emt 0:00:34]} Be6 {[%emt 0:00:14]} 35. Qa2 {[%emt 0:01:33]} Qd8 {[%emt 0:00:53]} 36. Qa6 {[%emt 0:00:22]} Bg7 {[%emt 0:00:20]} 37. Bxb5 {[%emt 0:00:35]} Nc7 {[%emt 0:00:17]} 38. Qb6 {[%emt 0:00:02]} Bxe5 {[%emt 0:00:42]} 39. dxe5 {[%emt 0:00:20]} Ndxb5 {[%emt 0:00:01]} 40. Bxf4 {[%emt 0:00:01]} Qd1+ {[%emt 0:00:27]} 41. Kh2 {[%emt 0:00:06]} Qh5+ {[%emt 0:00:03]} 42. Kg1 {[%emt 0:00:01]} Qg4 {[%emt 0:00:23]} 43. Bg3 {[%emt 0:00:07]} h5 {[%emt 0:00:06]} 44. Qb8+ {[%emt 0:00:07]} Kf7 {[%emt 0:00:36]} 45. Qd8 {[%emt 0:00:03]} Nd5 {[%emt 0:00:30]} 46. Bh4 {[%emt 0:00:30]} Nbc7 {[%emt 0:00:18]} 47. f3 {[%emt 0:00:10]} Qf4 {[%emt 0:00:18]} 48. Bg5 {[%emt 0:00:15]} Qxe5 {[%emt 0:00:07]} 49. c4 {[%emt 0:00:06]} Qd4+ {[%emt 0:00:18]} 50. Kh1 {[%emt 0:00:10]} Qxc4 {[%emt 0:00:04]} 51. Qh8 {[%emt 0:00:12]} Bf5 {[%emt 0:01:33]} 52. Qxh5+ {[%emt 0:00:14]} Bg6 {[%emt 0:00:01]} 53. Qh3 {[%emt 0:00:10]} Ne6 {[%emt 0:00:06]} 54. Bh4 {[%emt 0:00:53]} Ndf4 {[%emt 0:00:32]} 55. Qg4 {[%emt 0:00:17]} Qf1+ {[%emt 0:00:20]} 56. Kh2 {[%emt 0:00:02]} Ne2 {[%emt 0:00:07]} 57. Qc4 {[%emt 0:00:30]} Qg1+ {[%emt 0:00:10]} 58. Kh3 {[%emt 0:00:03]} Qh1+ {[%emt 0:00:01]} 59. Kg4 {[%emt 0:00:03]} Qxg2+ {[%emt 0:00:02]} 0-1